Cogmind - Beta 15 @@@ ROGUE MODE // 2025.06.21 @ 09:34:10 Player: Cog on my mind Result: Destroyed by H-77 Assassin with Coil Gun Performance ------------- Evolutions (5) 2500 Regions Visited (8) 1600 Robots Destroyed (138) 690 Value Destroyed (4949) 4949 Prototype IDs (33) 660 Alien Tech Used (2) 400 Bonus (1754) 1754 TOTAL SCORE: 12553 Bonus ------- High Alert Combat Kills 576 Follower Combat Kills 78 Registered with UFD 300 Met Optimus in HQ 500 Met Zhirov 300 Cogmind --------- Core Integrity 0/1000 Matter 119/300 Energy 99/100 System Corruption 52% Temperature Cool (0) Movement Core (50) Location -4/Proximity Caves Parts ------- > --- POWER (2) -------- (None) > --- PROPULSION (4) --- (None) > --- UTILITY (8) ------ (None) > --- WEAPON (3) ------- (None) > --- INVENTORY (5) ---- Enhanced Scrap Shield Molecular Deconstructor Peak State ------------ > --- POWER ------------ Reinforced Fission Core Heavy Antimatter Reactor > --- PROPULSION ------- Overtuned Huge Scrapsphere Overtuned Huge Scrapsphere > --- UTILITY ---------- Scrap Suit Advanced Heat Sink High-capacity Storage Unit Enhanced Scrap Shield Advanced System Shield > --- WEAPON ----------- Molecular Deconstructor Makeshift Sword > --- INVENTORY -------- Neutrino Core Micro Fission Core Light Antimatter Reactor Wheel Gravmag System Linear Gravjet Large Storage Unit Advanced Energy Well Matter Compressor Matter Compressor Structural Scanner Triangulator Improved Signal Interpreter 0b10 Decoder Chip [Generic] Particle Accelerator Experimental Weapon Shielding Transdimensional Reconstructor KE Penetrator Heavy Flak Cannon [Rating: 102] Favorites ----------- Power Improved Ion Engine Engine Improved Ion Engine Power Core Neutrino Core Reactor Heavy Antimatter Reactor Propulsion Overtuned Huge Scrapsphere Treads Spiked Treads Wheel Overtuned Huge Scrapsphere Hover Unit Backup Propulsion III Utility Seismic Detector Device Seismic Detector Storage Large Storage Unit Processor Advanced Targeting Computer Hackware Advanced System Shield Protection Enhanced Scrap Shield Weapon Barrage Gun Energy Gun Cooled Plasma Rifle Ballistic Gun Barrage Gun Ballistic Cannon Heavy Flak Cannon Launcher Missile Launcher Special Weapon Molecular Deconstructor Slashing Weapon Makeshift Sword Build | -11 -10 -10 -7 -5 -5 -5 -5 -4 ------- Run | Yrd Mat Sub Scr Fac Upp Upp Zhi Pro Slots Evolved 10 | . . . . 10 . . . . Power 1 | . . . . 1 . . . . Propulsion 2 | . . . . 2 . . . . Utility 6 | . . . . 6 . . . . Weapon 1 | . . . . 1 . . . . Parts Attached 90 | 7 6 10 2 53 2 2 5 3 Power 16 | 1 2 1 1 9 . 1 1 . Engine 7 | 1 2 1 . 3 . . . . Core 8 | . . . 1 6 . 1 . . Reactor 1 | . . . . . . . 1 . Propulsion 17 | 2 . 2 1 11 . . . 1 Treads 5 | 2 . 2 1 . . . . . Leg . | . . . . . . . . . Wheel 6 | . . . . 5 . . . 1 Hover 6 | . . . . 6 . . . . Flight . | . . . . . . . . . Utility 35 | 2 3 2 . 21 2 1 4 . Device 15 | 1 . . . 11 1 1 1 . Storage 5 | 1 2 . . 1 . . 1 . Processor 3 | . . . . 3 . . . . Hackware 2 | . . . . 1 . . 1 . Protection 10 | . 1 2 . 5 1 . 1 . Artifact . | . . . . . . . . . Weapon 22 | 2 1 5 . 12 . . . 2 Energy Gun 5 | 1 1 . . 3 . . . . Energy Cannon . | . . . . . . . . . Ballistic Gun 7 | 1 . 4 . 2 . . . . Ballistic Cannon 6 | . . . . 5 . . . 1 Launcher 2 | . . 1 . 1 . . . . Special Weapon 1 | . . . . . . . . 1 Impact Weapon . | . . . . . . . . . Slashing Weapon 1 | . . . . 1 . . . . Piercing Weapon . | . . . . . . . . . Special Melee Weapon . | . . . . . . . . . Unidentified Prototypes 12 | . . . . 4 1 . 5 2 Parts Lost 41 | . . 3 . 24 . 5 . 9 Power 7 | . . 1 . 5 . 1 . . Propulsion 4 | . . . . 3 . . . 1 Utility 18 | . . 1 . 9 . 3 . 5 Weapon 12 | . . 1 . 7 . 1 . 3 Highest Loss Streak 6 | . . 3 . 6 . 4 . 5 To Critical Strikes 1 | . . . . . . 1 . . Average Backups 13 | . 8 13 13 12 19 17 18 17 Power 1 | . . . . . 2 2 3 3 Propulsion 3 | . 3 4 3 . 6 6 4 3 Utility 5 | . 2 3 4 7 8 7 8 9 Weapon 3 | . 1 3 4 4 2 1 1 1 Tool/Special . | . . . . . . . . . Unused Backups 24 | . 2 2 9 . 2 . . 9 Power 5 | . . . 1 . 1 . . 3 Propulsion 9 | . 1 1 5 . . . . 2 Utility 6 | . 1 . . . 1 . . 4 Weapon 4 | . . 1 3 . . . . . Tool/Special . | . . . . . . . . . Average Slot Usage (%) 86 | . 100 99 100 67 81 74 61 60 Engine 7 | . 14 13 11 1 5 1 . . Core 3 | . . . 2 6 5 7 7 4 Treads 14 | . 28 28 28 . . . . . Wheel 4 | . . . . 8 11 11 11 10 Device 13 | . 6 12 14 11 17 22 21 10 Storage 9 | . 14 14 14 5 5 5 5 4 Processor 2 | . . . . 5 11 . . . Protection 2 | . 7 . . 3 4 5 3 3 Energy Gun 2 | . 14 4 . 2 . 4 . . Ballistic Gun 16 | . 14 23 28 4 17 11 . . Ballistic Cannon 1 | . . . . 6 . . . . Peak Build Rating 102 | 7 9 20 23 93 89 94 94 102 Average Rating 43 | 5 8 14 18 67 82 89 80 88 On Entrance 44 | . 7 9 17 23 81 83 94 90 Naked Turns 5 | . . . . . . . . 5 Heaviest Build 118 | 12 34 39 37 118 85 111 106 106 Greatest Support 40 | 40 40 40 40 40 40 40 40 40 Greatest Overweight (x) 8 | . . . . 5 2 2 2 8 Average Overweight (x) 1 | . . . . 1 1 2 2 2 Largest Inventory Capacity 20 | 8 15 15 15 20 20 20 20 20 Average Capacity 16 | 7 11 15 15 18 20 20 20 19 Most Carried 20 | 1 11 15 15 19 20 20 20 20 Average Carried 14 | . 8 13 14 13 19 17 18 18 Final Capacity 20 | 8 15 15 15 20 20 20 20 5 Final Carried 20 | 1 11 15 15 19 20 18 18 4 Class Distribution -------------------- 49% | Mutant 25% | Scavenger-Scrapper 12% | Scrapper 9% | Derelict-Mutant Dominant Class ---------------- Mutant | -10/Materials Mutant | -10/Subcaves Mutant | -7/Scraptown Scrapper | -5/Factory Scavenger-Scrapper | -5/Upper Caves Scavenger-Scrapper | -5/Upper Caves Scavenger-Scrapper | -5/Zhirov Scavenger-Scrapper | -4/Proximity Caves Resources | -11 -10 -10 -7 -5 -5 -5 -5 -4 ----------- Run | Yrd Mat Sub Scr Fac Upp Upp Zhi Pro Matter Collected 5386 | 278 196 508 10 3054 752 338 111 139 Remotely 12 | . . . . 12 . . . . Salvage Created 6522 | 99 510 288 . 3638 841 454 481 211 Parts 249 | 6 38 19 . 117 39 16 5 9 Haulers Intercepted 6 | . . . . 6 . . . . Recyclers Shooed 13 | . . . . 13 . . . . Parts Field Recycled . | . . . . . . . . . Retrieved Matter . | . . . . . . . . . Parts Self-Destructed 63 | . . 5 . . 34 7 2 15 Prevented 2 | . . . . . 2 . . . Kills | -11 -10 -10 -7 -5 -5 -5 -5 -4 ------- Run | Yrd Mat Sub Scr Fac Upp Upp Zhi Pro Combat Hostiles Destroyed 99 | . 12 12 . 49 13 6 . 7 Melee 2 | . . . . 1 . . . 1 Guns 55 | . 12 7 . 17 13 6 . . Cannons 23 | . . . . 23 . . . . AOE 13 | . . 5 . 8 . . . . Classes Destroyed 22 | 2 4 1 . 11 . 2 . 2 Worker 7 | . 1 . . 6 . . . . Builder 5 | . . . . 5 . . . . Tunneler 2 | 2 . . . . . . . . Hauler 6 | . . . . 6 . . . . Recycler 14 | 1 1 . . 12 . . . . Minesweeper 1 | . . . . . . . . 1 Mechanic 1 | . . . . 1 . . . . Watcher 5 | . 2 . . 3 . . . . Swarmer 27 | . 6 4 . 9 8 . . . Cutter 1 | . . . . 1 . . . . Saboteur 2 | . . . . 2 . . . . Grunt 30 | . 6 . . 15 2 3 . 4 Brawler 1 | . . . . . . 1 . . Duelist 2 | . . . . 1 . . . 1 Sentry 4 | . . . . 2 1 1 . . Demolisher 1 | . . . . 1 . . . . Specialist 1 | . . . . . . . . 1 Hunter 8 | . . . . 8 . . . . Programmer 11 | . . . . 8 2 . . 1 Subdweller 8 | . . 8 . . . . . . Assembled 2 | . . . . 2 . . . . Mutant 1 | . . . . . . 1 . . Best Kill Streak 22 | 1 3 4 . 22 5 4 . 5 Combat Bots Only 11 | . 2 4 . 11 5 4 . 2 Max Kills in Single Turn 2 | 1 1 1 . 2 1 1 . 1 Gunslinging . | . . . . . . . . . Exploded 2 | . . 1 . 2 . . . . Melee 1 | . . . . 1 . . . 1 Uniques/NPCs Destroyed . | . . . . . . . . . Combat | -11 -10 -10 -7 -5 -5 -5 -5 -4 -------- Run | Yrd Mat Sub Scr Fac Upp Upp Zhi Pro Hostile Shots Fired 834 | . 60 72 . 462 40 39 . 161 Missed 234 | . 19 25 . 124 14 9 . 43 Hits 600 | . 41 47 . 338 26 30 . 118 Melee 5 | . . . . 2 . 3 . . Projectile 595 | . 41 47 . 336 26 27 . 118 AOE 8 | . . . . 8 . . . . Critical Strikes 23 | . 1 . . 13 2 2 . 5 Actively Blocked 2 | . . . . . . . . 2 Part Disruptions 4 | . . . . 3 . . . 1 Damage Taken 10885 | . 374 759 . 6593 443 684 . 2032 Core 1190 | . 60 141 . 619 12 69 . 289 Absorbed by Shields 119 | . . . . 119 . . . . Redirected to Shielding 164 | . . . . . . . . 164 Regen/Repaired (Parts) 105 | . . . . 55 50 . . . Core Remaining (%) 59 | 100 . . 19 . . . . . Volleys Fired 361 | 7 41 46 . 167 37 22 . 41 Largest 3 | 2 2 2 . 3 3 3 . 2 Hottest 137 | 60 70 70 . 121 98 137 . 77 Shots Fired 792 | 14 82 85 . 420 88 59 . 44 Gun 535 | 14 82 78 . 208 88 59 . 6 Cannon 213 | . . . . 203 . . . 10 Launcher 16 | . . 7 . 9 . . . . Special 28 | . . . . . . . . 28 Kinetic 596 | 7 41 64 . 330 88 50 . 16 Thermal 159 | 7 41 21 . 81 . 9 . . Explosive 9 | . . . . 9 . . . . Electromagnetic . | . . . . . . . . . Robot Hit Streak 15 | 6 5 12 . 15 13 7 . 9 Robot Miss Streak 12 | 2 8 3 . 10 2 5 . 12 Penetration Max 1 | . . . . 1 . 1 . . Secondary Targets 5 | . 1 . . . 3 1 . . Max Gunslinging Chain 1 | . 1 . . . 1 1 . . Shots Hit Robots 527 | 10 42 53 . 310 43 30 8 31 Core Hits 347 | 4 23 20 . 255 23 15 2 5 Critical Kills 4 | . . . . 1 2 1 . . Critical Parts Destroyed 5 | . . . . 4 1 . . . Critical Strikes 20 | . 1 3 . 11 3 2 . . Burn 8 | . 1 3 . 4 . . . . Destroy 10 | . . . . 5 3 2 . . Blast 2 | . . . . 2 . . . . Melee Attacks 20 | . . . . 7 . . 8 5 Impact . | . . . . . . . . . Slashing 20 | . . . . 7 . . 8 5 Piercing . | . . . . . . . . . Sneak Attacks 7 | . . . . 5 . . . 2 Combat Hostiles 1 | . . . . . . . . 1 Follow-up Attacks . | . . . . . . . . . Damage Inflicted 14042 | 115 629 1304 . 9073 1192 902 564 263 Guns 6923 | 115 629 706 . 3352 1192 902 . 27 Cannons 3869 | . . . . 3756 . . . 113 Explosions 2131 | . . 598 . 1533 . . . . Melee 1119 | . . . . 432 . . 564 123 Ramming . | . . . . . . . . . Kinetic 9373 | 50 313 1091 . 5854 1192 733 . 140 Thermal 2113 | 65 316 213 . 1350 . 169 . . Explosive 1437 | . . . . 1437 . . . . Electromagnetic . | . . . . . . . . . Impact . | . . . . . . . . . Slashing 1119 | . . . . 432 . . 564 123 Piercing . | . . . . . . . . . Highest Corruption 52 | . . . . 29 33 45 45 52 Average Corruption 32 | . . . . 16 32 44 45 48 Corruption Purged . | . . . . . . . . . Corruption Blocked 2 | . . . . 2 . . . . Effects 200 | . . . . 60 60 47 12 21 Message Errors 41 | . . . . 11 10 13 4 3 Matter Fused 48 | . . . . 12 14 14 3 5 Heat Flow Errors 18 | . . . . 7 4 3 2 2 Energy Discharges 17 | . . . . 5 4 5 1 2 Parts Rejected 3 | . . . . 3 . . . . Parts Fused 2 | . . . . . . 1 . 1 Data Loss (minor) 25 | . . . . 5 11 4 1 4 Data Loss (major) 14 | . . . . 6 3 2 1 2 Misfires 2 | . . . . 1 1 . . . Alerts 6 | . . . . 1 2 2 . 1 Misdirections 2 | . . . . 1 . . . 1 Weapon Failures 22 | . . . . 8 11 3 . . Overload Shots 2 | . . . . 1 . 1 . . Overflow Damage 491 | . . . . 257 . . 195 39 Projectiles 13 | . . . . 13 . . . . Explosions 159 | . . . . 159 . . . . Melee 319 | . . . . 85 . . 195 39 Knockbacks 65 | . . . . 64 . . . 1 Impact . | . . . . . . . . . Kinetic 61 | . . . . 60 . . . 1 Secondary 4 | . . . . 4 . . . . Self-Inflicted Damage 160 | . . 16 . 144 . . . . Shots 4 | . . 2 . 2 . . . . Rammed . | . . . . . . . . . Targets Rammed . | . . . . . . . . . Kicked . | . . . . . . . . . Crushed . | . . . . . . . . . Highest Temperature 426 | . 263 3 . 426 239 219 152 211 Average Temperature 107 | . 81 3 . 120 41 103 82 101 Received Heat Transfer 1082 | . 84 66 . 484 18 216 . 214 Effects 3 | . . . . 3 . . . . Shutdowns 1 | . . . . 1 . . . . Energy Bleed 2 | . . . . 2 . . . . Siege Activations . | . . . . . . . . . Martial Activations . | . . . . . . . . . Shielding Activations . | . . . . . . . . . Robots Disrupted . | . . . . . . . . . Combat Hostiles . | . . . . . . . . . Robots Corrupted . | . . . . . . . . . Combat Hostiles . | . . . . . . . . . Parts Fried 1 | . . . . . 1 . . . Impact Corruptions . | . . . . . . . . . Robots Melted . | . . . . . . . . . Combat Hostiles . | . . . . . . . . . Parts Melted 4 | . . . . 4 . . . . Heat Transferred 5258 | 150 927 851 . 3000 . 330 . . Parts Sabotaged . | . . . . . . . . . Parts Stolen . | . . . . . . . . . Parts Stripped . | . . . . . . . . . Power Chain Reactions . | . . . . . . . . . Alert | -11 -10 -10 -7 -5 -5 -5 -5 -4 ------- Run | Yrd Mat Sub Scr Fac Upp Upp Zhi Pro Maximum Alert Level 4 | . . . . 4 . . . . Low Security (%) 52 | 100 100 . . 30 . . . . Level 1 2 | . . . . 3 . . . . Level 2 21 | . . . . 31 . . . . Level 3 17 | . . . . 26 . . . . Level 4 5 | . . . . 8 . . . . Level 5 . | . . . . . . . . . High Security . | . . . . . . . . . Max Security . | . . . . . . . . . Peak Influence 1234 | 5 143 . . 1234 . . . . Initial 3 | . 3 . . . . . . . Average 383 | 1 70 . . 529 . . . . Influence Increases 3302 | 15 383 185 . 2072 335 110 18 184 Destroy 0b10 Robot/C 1900 | . 240 80 . 1060 260 100 . 160 Destroy 0b10 Robot/NC 240 | 15 20 . . 170 15 . 15 5 Destroy Leader 312 | . 54 . . 208 30 10 . 10 Allied During Kill 25 | . . . . 13 . . 3 9 Trap Triggered on 0b10 10 | . . . . 10 . . . . Successful Hack 55 | . 38 . . 17 . . . . Select Force Hacks 30 | . 30 . . . . . . . Disable Machine 180 | . . . . 180 . . . . Destroy Structure 265 | . 1 . . 264 . . . . Partial Spotted 15 | . . . . 15 . . . . Lose Combat Pursuer 270 | . . 105 . 135 30 . . . Influence Decreases 3302 | 10 293 139 141 838 856 543 298 184 Entered New Map 1065 | . 2 47 141 . 458 137 280 . Time Decay 1795 | 10 291 92 . 508 398 356 18 122 Lost Part 327 | . . . . 240 . 50 . 37 Lost Ally 115 | . . . . 90 . . . 25 Squads Dispatched 18 | . 2 . . 16 . . . . Investigation 6 | . 2 . . 4 . . . . Extermination 4 | . . . . 4 . . . . Reinforcement 6 | . . . . 6 . . . . Assault 2 | . . . . 2 . . . . Garrison . | . . . . . . . . . Intercept . | . . . . . . . . . Searches Triggered . | . . . . . . . . . Construction Impeded 4 | . . . . 4 . . . . Haulers Reinforced 1 | . . . . 1 . . . . Active Scanning Responses . | . . . . . . . . . Cargo Convoy Interrupts 1 | . . . . 1 . . . . Stealth | -11 -10 -10 -7 -5 -5 -5 -5 -4 --------- Run | Yrd Mat Sub Scr Fac Upp Upp Zhi Pro Distress Signals 4 | . 2 . . 2 . . . . Communications Jammed . | . . . . . . . . . Distress Signals . | . . . . . . . . . Times Spotted 150 | . 15 14 . 80 15 6 . 20 Peak Tracking Total 16 | . 3 6 . 16 5 4 . 6 Tactical Retreats 9 | . . 1 . 7 1 . . . Traps | -11 -10 -10 -7 -5 -5 -5 -5 -4 ------- Run | Yrd Mat Sub Scr Fac Upp Upp Zhi Pro Traps Triggered 5 | . 1 . . 3 . . . 1 Indirectly . | . . . . . . . . . Trap Hack Attempts . | . . . . . . . . . Triggered . | . . . . . . . . . Disarmed . | . . . . . . . . . Reprogrammed . | . . . . . . . . . Reused 1 | . . . . 1 . . . . Traps Extracted . | . . . . . . . . . Installed 1 | . . . . 1 . . . . Triggered 1 | . . . . 1 . . . . Most Traps Carried 1 | . . . 1 1 . . . . Machines | -11 -10 -10 -7 -5 -5 -5 -5 -4 ---------- Run | Yrd Mat Sub Scr Fac Upp Upp Zhi Pro Machines Disabled 18 | . . 4 . 12 . 1 . 1 Max in Single Turn 4 | . . 3 . 4 . 1 . 1 Machines Repaired . | . . . . . . . . . Machines Dismantled . | . . . . . . . . . Machines Sabotaged . | . . . . . . . . . Overloaded Fab Kills . | . . . . . . . . . Hacking | -11 -10 -10 -7 -5 -5 -5 -5 -4 --------- Run | Yrd Mat Sub Scr Fac Upp Upp Zhi Pro Machines Accessed 22 | . 5 1 2 9 1 . 4 . Terminals 9 | . 4 . . 4 1 . . . Fabricators 1 | . . . . 1 . . . . Repair Stations . | . . . . . . . . . Recycling Units 5 | . 1 . . 4 . . . . Scanalyzers . | . . . . . . . . . Garrison Access . | . . . . . . . . . Total Hacks 59 | . 18 4 2 17 1 . 17 . Successful 42 | . 11 4 2 7 1 . 17 . Failed 17 | . 7 . . 10 . . . . Catastrophic 1 | . . . . 1 . . . . Database Lockouts . | . . . . . . . . . Manual 29 | . 16 . . 12 . . . 1 Terminals 27 | . 17 . . 9 1 . . . Fabricators 3 | . . . . 3 . . . . Repair Stations . | . . . . . . . . . Recycling Units 6 | . 1 . . 5 . . . . Scanalyzers . | . . . . . . . . . Garrison Access . | . . . . . . . . . Terminal Hacks 34 | . 8 4 2 2 1 . 17 . Record 11 | . . 4 1 . 1 . 5 . Part Schematic 4 | . . . . . . . 4 . Robot Analysis 7 | . 3 . . . . . 4 . Prototype ID Bank 9 | . 5 . . . . . 4 . Branch Access Points 1 | . . . . 1 . . . . Terminal Index 1 | . . . . 1 . . . . Proto ID Catalog 1 | . . . 1 . . . . . Fabricator Hacks . | . . . . . . . . . Repair Station Hacks . | . . . . . . . . . Recycling Unit Hacks . | . . . . . . . . . Scanalyzer . | . . . . . . . . . Garrison Access Hacks . | . . . . . . . . . Unauthorized Hacks 8 | . 3 . . 5 . . . . Terminals 4 | . 2 . . 2 . . . . Botnet 4 | . 2 . . 2 . . . . Fabricators . | . . . . . . . . . Repair Stations . | . . . . . . . . . Recycling Units 4 | . 1 . . 3 . . . . Tunnel 1 | . 1 . . . . . . . Fedlink 2 | . . . . 2 . . . . Scrapoids 1 | . . . . 1 . . . . Scanalyzers . | . . . . . . . . . Garrison Access . | . . . . . . . . . Data Cores Recovered . | . . . . . . . . . Used . | . . . . . . . . . Hacking Detections 10 | . 4 . . 6 . . . . Full Trace Events . | . . . . . . . . . Feedback Events . | . . . . . . . . . Feedback Blocked . | . . . . . . . . . Robot Schematics Acquired . | . . . . . . . . . Robots Built . | . . . . . . . . . Authchips . | . . . . . . . . . Time . | . . . . . . . . . Total Robot Build Rating . | . . . . . . . . . Part Schematics Acquired 4 | . . . . . . . 4 . Parts Built . | . . . . . . . . . Authchips . | . . . . . . . . . Time . | . . . . . . . . . Total Part Build Rating . | . . . . . . . . . Parts Repaired . | . . . . . . . . . Time . | . . . . . . . . . Parts Recycled . | . . . . . . . . . Recycled Matter . | . . . . . . . . . Retrieved Matter . | . . . . . . . . . Retrieved Components . | . . . . . . . . . Parts Scanalyzed . | . . . . . . . . . Part Schematics Acquired . | . . . . . . . . . Parts Damaged . | . . . . . . . . . Bothacking | -11 -10 -10 -7 -5 -5 -5 -5 -4 ------------ Run | Yrd Mat Sub Scr Fac Upp Upp Zhi Pro Used RIF Installer . | . . . . . . . . . Robots Hacked . | . . . . . . . . . Non-combat . | . . . . . . . . . Combat . | . . . . . . . . . Robot Hacks Applied . | . . . . . . . . . Relay Couplers Released . | . . . . . . . . . Fabnet Peak Effective % . | . . . . . . . . . Robots Rewired 4 | . . . . . . 4 . . Allies Hacked . | . . . . . . . . . Hacks Repelled . | . . . . . . . . . Allies | -11 -10 -10 -7 -5 -5 -5 -5 -4 -------- Run | Yrd Mat Sub Scr Fac Upp Upp Zhi Pro Total Allies 9 | . . . . 5 . 4 . . Largest Group 5 | . . . . 5 . 4 4 4 Highest-Rated Group 235 | . . . . 235 . 119 119 119 Highest-Rated Ally 47 | . . . . 47 . 30 30 30 Total Orders 1 | . . . . 1 . . . . EXPLORE 1 | . . . . 1 . . . . Ally Attacks 58 | . . . . 49 . . . 9 Total Damage 1373 | . . . . 1137 . . . 236 Kills 8 | . . . . 7 . . . 1 Allies Corrupted 2 | . . . . 1 . . . 1 Allies Melted . | . . . . . . . . . Intel | -11 -10 -10 -7 -5 -5 -5 -5 -4 ------- Run | Yrd Mat Sub Scr Fac Upp Upp Zhi Pro Active Infowar (turns) 8205 | 46 301 1977 2029 1621 952 808 218 253 Structural 264 | . . . . 264 . . . . Seismic 7603 | 46 301 1977 2029 1357 952 808 114 19 Triangulation 1206 | . . . . . . 755 217 234 Robot Analysis Total 7 | . 3 . . . . . 4 . Derelict Logs Recovered 10 | . . 1 3 . 2 2 . 2 Drone Launches 5 | . . . . 5 . . . . Drone Recoveries 2 | . . . . 2 . . . . Exploration | -11 -10 -10 -7 -5 -5 -5 -5 -4 ------------- Run | Yrd Mat Sub Scr Fac Upp Upp Zhi Pro Turns Passed 9291 | 135 711 2132 2029 1873 957 808 219 427 Spaces Moved 6186 | 70 343 1199 1219 1257 910 744 178 266 Core 19 | 10 . . . . . . . 9 Treads 2821 | 60 343 1199 1219 . . . . . Legs . | . . . . . . . . . Wheels 3098 | . . . . 1009 910 744 178 257 Hover 248 | . . . . 248 . . . . Flight . | . . . . . . . . . Fastest Speed 50 | 50 160 160 160 58 80 90 90 50 Average Speed 122 | 144 160 160 164 87 89 90 90 92 Slowest Speed 316 | 160 160 160 165 316 90 90 90 200 Overloaded Moves . | . . . . . . . . . Propulsion Burnouts . | . . . . . . . . . Robots Hopped . | . . . . . . . . . Potential Cave-ins 3 | . . . . 3 . . . . Cave-ins Triggered . | . . . . . . . . . Teleports 1 | . . . . . . . . 1 Exploration Rate (%) 61 | 5 61 70 91 35 97 85 60 51 Regions Visited 8 Branch Regions 6 Pre-discovered Areas 9 | . 1 1 2 1 . . 3 1 Known Exits Taken 2 | . . . . 1 1 . . . Unknown Exits Taken 6 | 1 1 1 1 . . 1 1 . Scrap Searched 18 | . . 11 3 . 3 1 . . Spaces Dug 36 | . . . . 10 23 3 . . Terrain Destroyed 291 | . . 72 . 130 61 24 . 4 Melee . | . . . . . . . . . Projectile 106 | . . . . 18 61 23 . 4 AOE 184 | . . 72 . 112 . . . . Terrain Rammed . | . . . . . . . . . Walls Destroyed . | . . . . . . . . . Machines Disabled . | . . . . . . . . . Actions | -11 -10 -10 -7 -5 -5 -5 -5 -4 --------- Run | Yrd Mat Sub Scr Fac Upp Upp Zhi Pro Total 7194 | 87 425 1332 1247 1667 989 845 232 370 Wait 307 | 3 16 51 4 127 25 21 16 44 Move 6178 | 69 342 1198 1218 1256 909 743 177 266 Hop . | . . . . . . . . . Pick Up 70 | 1 12 9 10 22 6 3 5 2 Fast Attach 52 | 7 . 2 1 32 2 . 7 1 Attach 40 | . . 4 . 21 1 4 4 6 Detach 12 | . . 1 . 7 . . 2 2 Swap 32 | . 7 13 1 10 1 . . . Drop 68 | . 7 8 13 17 8 . 13 2 Fire 361 | 7 41 46 . 167 37 22 . 41 Melee 20 | . . . . 7 . . 8 5 Ram 1 | . . . . . . . . 1 Kick . | . . . . . . . . . Crush . | . . . . . . . . . Escape Stasis . | . . . . . . . . . Rewire 52 | . . . . . . 52 . . Trap 1 | . . . . 1 . . . . Miscellaneous . | . . . . . . . . . Route ------- -11/Scrapyard -10/Materials (discovered 4 exits: [*Mat x2] / [*Min] / *Sub) -10/Subcaves (discovered 2 exits: [*Rec] / *Scr) -7/Scraptown (discovered 2 exits: *Fac x2) -5/Factory (discovered 4 exits: *Upp x2 / *Ext x2) -5/Upper Caves -5/Upper Caves (discovered 2 exits: *Fac / *Zhi) -5/Zhirov -4/Proximity Caves (discovered 1 exit: Fac) History --------- Turn | Location | Event 3 | -11/Scrapyard | Discovered new exit (range 15) 136 | -11/Scrapyard | Entered Materials 304 | -10/Materials | Build established: Mutant 365 | -10/Materials | Discovered new exit (range 16) 507 | -10/Materials | Discovered new exit (range 7) 672 | -10/Materials | Discovered new exit (range 13) 834 | -10/Materials | Discovered new exit (range 8) 847 | -10/Materials | Entered Subcaves 848 | -10/Subcaves | Approached by a straggling Scientist 1329 | -10/Subcaves | Scientist uncovered a shortcut to Scraptown 1473 | -10/Subcaves | Lost 3 parts (1p1u1w) 1829 | -10/Subcaves | A swath of the cavern ceiling suddenly collapsed 2089 | -10/Subcaves | Visited Clippyterm 2094 | -10/Subcaves | Learned Research security intel 2094 | -10/Subcaves | Learned Factory stockpile data 2178 | -10/Subcaves | Core integrity fell below 50% 2248 | -10/Subcaves | Shifting Twisted Machinery released Mak. Kinetic Plating 2265 | -10/Subcaves | Shifting Twisted Machinery released Spk. Treads 2266 | -10/Subcaves | Shifting Twisted Machinery released Barrage Gun 2413 | -10/Subcaves | Disturbed a concealed Subdweller 2566 | -10/Subcaves | Shifting Twisted Machinery released Mak. Light Armor Plating 2569 | -10/Subcaves | Build established: Derelict-Mutant 2630 | -10/Subcaves | Discovered new exit (range 14) 2766 | -10/Subcaves | Core integrity fell below 20% 2979 | -10/Subcaves | Entered Scraptown 3268 | -7/Scraptown | Scanned Subdweller tech in exchange for log data 3271 | -7/Scraptown | Learned 8 Research zone layouts 3272 | -7/Scraptown | Learned location of Armory (-3) 3274 | -7/Scraptown | Learned location of Testing (-2) 3302 | -7/Scraptown | Discovered new exit (range 3) 3406 | -7/Scraptown | Visited IN-MT5's Study 3419 | -7/Scraptown | Build established: Mutant 3428 | -7/Scraptown | Visited Shadow of the Wyrm 3442 | -7/Scraptown | Visited Symbiants 3480 | -7/Scraptown | Visited CPS Storage 3546 | -7/Scraptown | Visited Spacefarers 3772 | -7/Scraptown | Visited Comm Corps 3824 | -7/Scraptown | Visited The Evicted 3859 | -7/Scraptown | Visited UFD Registry 3859 | -7/Scraptown | Registered with UFD as "Arcdriver" 3918 | -7/Scraptown | Visited Science Testing Area 3945 | -7/Scraptown | Visited LU-1G1's Boring Crew 4019 | -7/Scraptown | Visited Science Guys 4128 | -7/Scraptown | Delivered Scrap Shield to a Scientist 4272 | -7/Scraptown | Visited Junk Repository 4330 | -7/Scraptown | Visited Scrap Suit Storage 4395 | -7/Scraptown | Visited Modified Component R&D 4471 | -7/Scraptown | Discovered new exit (range 5) 4626 | -7/Scraptown | Visited Junk Repository 4691 | -7/Scraptown | Visited Research Penetration Think Tank 4858 | -7/Scraptown | Found Scrap Suit 4907 | -7/Scraptown | Met Optimus 4907 | -7/Scraptown | Accepted into 0bPrime 5008 | -7/Scraptown | Entered Factory 5008 | -5/Factory | Evolved 10 slots: Power x1, Propulsion x2, Utility x6, Weapon x1 5325 | -5/Factory | Build established: Scrapper 5513 | -5/Factory | Identified exit to Upper Caves 5513 | -5/Factory | Identified exit to Extension 5650 | -5/Factory | Destroyed 11 combat bots 5759 | -5/Factory | Loaded intel: 8 recycling unit locations 5794 | -5/Factory | Learned location of Protoforge (-3) 5796 | -5/Factory | Assembled infested ambush trap array 5908 | -5/Factory | First assault squad dispatched 6145 | -5/Factory | Cargo convoy interrupted 6219 | -5/Factory | System corruption reached 10% 6274 | -5/Factory | Lost 5 parts (1p2u2w) 6398 | -5/Factory | Lost 6 parts (1n3u2w) 6560 | -5/Factory | Core integrity fell below 50% 6605 | -5/Factory | Lost 4 parts (2p2n) 6691 | -5/Factory | Scrapoids reinforcements arrived? 6771 | -5/Factory | Found Scrap Suit 6788 | -5/Factory | Found Scrap Suit 6832 | -5/Factory | Lost 4 allies 6881 | -5/Factory | Entered Upper Caves 6883 | -5/Upper Caves | UFD Scientist delivered a prototype 6886 | -5/Upper Caves | Found Prototype Protection 6886 | -5/Upper Caves | Identified Enh. Scrap Shield 6919 | -5/Upper Caves | System corruption reached 30% 7080 | -5/Upper Caves | Build established: Scavenger-Scrapper 7262 | -5/Upper Caves | Attracted the attention of an 0b10 checkpoint 7329 | -5/Upper Caves | Identified exit to Upper Caves 7388 | -5/Upper Caves | Encountered a Warlord checkpoint 7602 | -5/Upper Caves | Learned Factory trap positions 7838 | -5/Upper Caves | Entered another Upper Caves area 7898 | -5/Upper Caves | Lost 4 parts (3u1w) 7961 | -5/Upper Caves | Discovered new exit (range 8) 8098 | -5/Upper Caves | Attracted the attention of an 0b10 checkpoint 8344 | -5/Upper Caves | Learned Factory interactive machine intel 8448 | -5/Upper Caves | Discovered new exit (range 7) 8531 | -5/Upper Caves | Attacked by a delusional Derelict stockpiling Unaware 8646 | -5/Upper Caves | Entered Zhirov 8646 | -5/Zhirov | Accompanied by 4 allies 8647 | -5/Zhirov | Discovered new exit (range 3) 8665 | -5/Zhirov | Met Zhirov 8682 | -5/Zhirov | Learned location of Quarantine (-3) 8682 | -5/Zhirov | Learned location of Command (-1) 8690 | -5/Zhirov | Zhirov requested help retrieving the SGEMP Prototype 8704 | -5/Zhirov | Found Alien Artifact 8704 | -5/Zhirov | Identified Integrated Dissipator 8704 | -5/Zhirov | Installed Integrated Dissipator, increased core heat dissipation (+20) 8716 | -5/Zhirov | Found Alien Artifact 8865 | -5/Zhirov | Entered Proximity Caves 8865 | -4/Proximity Caves | Accompanied by 4 allies 8880 | -4/Proximity Caves | P-70 Sage assimilated allied Fighter 6a 8911 | -4/Proximity Caves | Acquired the password to a Derelict Tinkerer's latest research 8924 | -4/Proximity Caves | Found Prototype Special Weapon 8924 | -4/Proximity Caves | Identified Molecular Deconstructor 9058 | -4/Proximity Caves | Caught by Unaware searching for contraband prototypes 9061 | -4/Proximity Caves | Spotter reported a threat 9072 | -4/Proximity Caves | Spotter reported a threat 9079 | -4/Proximity Caves | Identified Transdimensional Reconstructor 9079 | -4/Proximity Caves | Warped through subspace 9102 | -4/Proximity Caves | Identified exit to Factory 9137 | -4/Proximity Caves | Spotter reported a threat 9164 | -4/Proximity Caves | Spotter reported a threat 9190 | -4/Proximity Caves | Spotter reported a threat 9200 | -4/Proximity Caves | Lost 3 parts (3u) 9271 | -4/Proximity Caves | Core integrity fell below 20% 9287 | -4/Proximity Caves | Released all parts (5) 9292 | -4/Proximity Caves | Destroyed by H-77 Assassin with Coil Gun Last Messages --------------- 09276_ Slug penetrates Wall. 09277_ Penetrated by Slug. 09279_ Slug penetrates Wall. 09280_ Penetrated by Slug. 09280_ Wheel destroyed. 09280_ Adv. System Shield destroyed. 09282_ Slug penetrates Wall. 09282_ Penetrated by Slug. 09283_ Slug penetrates Wall. 09283_ KE Penetrator destroyed. 09285_ Slug penetrates Wall. 09285_ Hvy. Flak Cannon destroyed. 09286_ Penetrated by Slug. 09287_ Released Triangulator. 09287_ Released Ovr. Huge Scrapsphere. 09287_ Released Hcp. Storage Unit. 09287_ Released Rnf. Fission Core. 09287_ Released Hvy. Antimatter Reactor. 09287_ Extracted 1 energy. 09290_ Penetrated by Slug. Map ----- +----------------------------------------------------+ | ??????????????????????????????????????????????? | | ??????????????????????????????????????????????? | | ??????????????????????????????????????????????? | | ??????????????????????????????????????????????? | | ??????????????????????????????????????????????? | | ??????????????????????????????????????????????? | | ??????????????????????????????????????????????? | | ??????????????????????????????????????????????? | | ??????????????????????????????????????????????? | | ??????????????????????????????????????????????? | | ??????????????????????????????????????????????? | | ????????????????????????????##????????????????? | | ??????????####?##??????????# #????????????????? | | ?? ?????## ## ??????????? #???????????????? | | ????## ??????????? ????????????????? | | ??????# #??????????# ???????????????? | | ???????? ##????????? ????????????????? | | ?????????? ????????## ?????????????????? | | ??????????# ?????????# #?????????????????? | | ??????????# #????????## ##????????????????? | | ??????????# ##??????## #????????????????? | | ####??????# #??????# #????????????????? | | ######## ###????# #?????????????????? | | ## ##??## #?????????????????? | | ## [%! =!!#?## #?????????????????? | | ##### !**#### @#???????????????????? | | ## #??## *!==# #???????????????????? | | #########??# =!!!*h ##???????????????????? | | ?????????# *!!h;######????????????????????? | | ????????# ###### ????????????????????????? | | ???????# ##?????###???????????????????????? | | ??????# #?????????????????????????????????? | | ?????# ???????????????